[Event "Late-Titled-Tuesday-Blitz-October-10-2023"]
[Site "Chess.com"]
[Date "2023.10.10"]
[Round "6"]
[White "GlavkonVVS"]
[Black "TanitoluwaAps116"]
[Result "1-0"]
[WhiteElo "2539"]
[BlackElo "2682"]
[TimeControl "180+1"]
[EndTime "15:00:41 PDT"]
[Termination "GlavkonVVS won by resignation"]

1. Nf3 {[%clk 0:03:00.9]} 1... Nf6 {[%clk 0:02:47.3]} 2. g3 {[%clk 0:03:01.3]}
2... c5 {[%clk 0:02:43.8]} 3. Bg2 {[%clk 0:03:01.8]} 3... Nc6 {[%clk 0:02:43.9]}
4. d3 {[%clk 0:03:02.4]} 4... g6 {[%clk 0:02:40.9]} 5. c4 {[%clk 0:03:02.7]}
5... Bg7 {[%clk 0:02:41]} 6. Nc3 {[%clk 0:03:03.4]} 6... O-O {[%clk 0:02:41.5]}
7. a3 {[%clk 0:03:03.9]} 7... d6 {[%clk 0:02:39.9]} 8. Rb1 {[%clk 0:03:03.7]}
8... Re8 {[%clk 0:02:40.5]} 9. b4 {[%clk 0:03:02]} 9... cxb4 {[%clk 0:02:20.7]}
10. axb4 {[%clk 0:03:01.7]} 10... e5 {[%clk 0:02:20]} 11. O-O {[%clk 0:02:59.1]}
11... Be6 {[%clk 0:02:03.9]} 12. b5 {[%clk 0:02:58.3]} 12... Nd4 {[%clk
0:02:00.9]} 13. Ng5 {[%clk 0:02:57.7]} 13... Bc8 {[%clk 0:01:36.7]} 14. e3
{[%clk 0:02:56.3]} 14... Ne6 {[%clk 0:01:22.4]} 15. Nxe6 {[%clk 0:02:43.1]}
15... fxe6 {[%clk 0:01:12.9]} 16. Qb3 {[%clk 0:02:33.2]} 16... Rb8 {[%clk
0:01:10]} 17. Ra1 {[%clk 0:02:30.1]} 17... Qb6 {[%clk 0:00:42.2]} 18. Ba3 {[%clk
0:02:13.7]} 18... Bd7 {[%clk 0:00:33.3]} 19. Rfb1 {[%clk 0:02:08.5]} 19... Rec8
{[%clk 0:00:25.3]} 20. Na4 {[%clk 0:02:06.3]} 20... Qc7 {[%clk 0:00:23.4]} 21.
b6 {[%clk 0:02:03.8]} 21... axb6 {[%clk 0:00:18.3]} 22. Nxb6 {[%clk 0:02:04]}
22... Rd8 {[%clk 0:00:16.8]} 23. Nxd7 {[%clk 0:02:03.8]} 23... Nxd7 {[%clk
0:00:16.9]} 24. Qb5 {[%clk 0:01:59.4]} 24... Nc5 {[%clk 0:00:11.8]} 25. Bxc5
{[%clk 0:01:57.1]} 25... dxc5 {[%clk 0:00:12.7]} 26. Be4 {[%clk 0:01:56.2]}
26... b6 {[%clk 0:00:06.1]} 27. Ra6 {[%clk 0:01:55.1]} 27... Rd6 {[%clk
0:00:04.6]} 28. Rba1 {[%clk 0:01:55.3]} 28... Bh6 {[%clk 0:00:01.9]} 29. Ra7
{[%clk 0:01:55.4]} 29... Qd8 {[%clk 0:00:02.2]} 30. Ra8 {[%clk 0:01:50]} 30...
Rc8 {[%clk 0:00:01.3]} 1-0

[Event "Late-Titled-Tuesday-Blitz-October-10-2023"]
[Site "Chess.com"]
[Date "2023.10.10"]
[Round "6"]
[White "Dedic8"]
[Black "GHANDEEVAM2003"]
[Result "1-0"]
[WhiteElo "2877"]
[BlackElo "3034"]
[TimeControl "180+1"]
[EndTime "15:00:45 PDT"]
[Termination "Dedic8 won by resignation"]

1. d4 {[%clk 0:03:00.9]} 1... e6 {[%clk 0:02:58.2]} 2. c4 {[%clk 0:03:00.3]}
2... c5 {[%clk 0:02:57.9]} 3. d5 {[%clk 0:03:00.1]} 3... exd5 {[%clk 0:02:58.8]}
4. cxd5 {[%clk 0:03:01]} 4... d6 {[%clk 0:02:59.2]} 5. Nc3 {[%clk 0:03:01.7]}
5... g6 {[%clk 0:02:59.6]} 6. e4 {[%clk 0:03:01]} 6... Bg7 {[%clk 0:03:00.2]} 7.
Nf3 {[%clk 0:03:01.3]} 7... a6 {[%clk 0:03:00]} 8. a4 {[%clk 0:03:01]} 8... Bg4
{[%clk 0:03:00.6]} 9. Be2 {[%clk 0:03:00.6]} 9... Bxf3 {[%clk 0:02:58.8]} 10.
Bxf3 {[%clk 0:03:01]} 10... Nd7 {[%clk 0:02:59.4]} 11. O-O {[%clk 0:03:01]}
11... Ne7 {[%clk 0:02:59]} 12. Be2 {[%clk 0:02:51.7]} 12... O-O {[%clk
0:02:58.9]} 13. Bg5 {[%clk 0:02:48.1]} 13... h6 {[%clk 0:02:56.8]} 14. Bf4
{[%clk 0:02:48.4]} 14... Ne5 {[%clk 0:02:55.1]} 15. Qd2 {[%clk 0:02:45.8]} 15...
g5 {[%clk 0:02:54.8]} 16. Bg3 {[%clk 0:02:43.1]} 16... f5 {[%clk 0:02:54.3]} 17.
f4 {[%clk 0:02:43]} 17... gxf4 {[%clk 0:02:47.1]} 18. Bxf4 {[%clk 0:02:43.5]}
18... fxe4 {[%clk 0:02:36.3]} 19. Nxe4 {[%clk 0:02:39.1]} 19... Nf5 {[%clk
0:02:35.3]} 20. Kh1 {[%clk 0:02:25]} 20... Qh4 {[%clk 0:02:31.9]} 21. g3 {[%clk
0:02:09]} 21... Qe7 {[%clk 0:02:25.3]} 22. Rae1 {[%clk 0:02:08.7]} 22... Qd7
{[%clk 0:02:15.5]} 23. Bh5 {[%clk 0:02:02]} 23... Nd4 {[%clk 0:02:09.8]} 24.
Bxe5 {[%clk 0:01:31]} 24... dxe5 {[%clk 0:02:10.7]} 25. d6 {[%clk 0:01:17.3]}
25... Qc6 {[%clk 0:02:01.5]} 26. Qg2 {[%clk 0:01:16.9]} 26... c4 {[%clk
0:01:49.1]} 27. h4 {[%clk 0:01:16.1]} 27... Rxf1+ {[%clk 0:01:37.9]} 28. Rxf1
{[%clk 0:01:15.2]} 28... Rf8 {[%clk 0:01:38.8]} 29. Rxf8+ {[%clk 0:01:05.2]}
29... Bxf8 {[%clk 0:01:39.7]} 30. Be8 {[%clk 0:00:56.9]} 30... Qb6 {[%clk
0:01:32.5]} 31. Qf2 {[%clk 0:00:57]} 31... Bg7 {[%clk 0:01:18.5]} 32. Qf7+
{[%clk 0:00:53.1]} 32... Kh8 {[%clk 0:01:19]} 33. Nf6 {[%clk 0:00:50.5]} 1-0

[Event "Late-Titled-Tuesday-Blitz-October-10-2023"]
[Site "Chess.com"]
[Date "2023.10.10"]
[Round "6"]
[White "K_alena13"]
[Black "Kostukov_Alex"]
[Result "0-1"]
[WhiteElo "2140"]
[BlackElo "2378"]
[TimeControl "180+1"]
[EndTime "15:00:55 PDT"]
[Termination "Kostukov_Alex won by resignation"]

1. Nf3 {[%clk 0:03:00.9]} 1... c5 {[%clk 0:02:58.7]} 2. c4 {[%clk 0:03:00.6]}
2... g6 {[%clk 0:02:58.7]} 3. Nc3 {[%clk 0:03:00.1]} 3... Bg7 {[%clk 0:02:59.3]}
4. e3 {[%clk 0:02:59.9]} 4... Nf6 {[%clk 0:02:59.2]} 5. d4 {[%clk 0:03:00.5]}
5... O-O {[%clk 0:02:59.6]} 6. Be2 {[%clk 0:02:58.8]} 6... d5 {[%clk 0:02:58.7]}
7. O-O {[%clk 0:02:49.7]} 7... Nc6 {[%clk 0:02:57.7]} 8. dxc5 {[%clk 0:02:44.9]}
8... dxc4 {[%clk 0:02:32.7]} 9. Bxc4 {[%clk 0:02:41.2]} 9... Qa5 {[%clk
0:02:31.5]} 10. Qe2 {[%clk 0:02:22.4]} 10... Qxc5 {[%clk 0:02:30.9]} 11. a3
{[%clk 0:02:21.8]} 11... Bg4 {[%clk 0:02:27.4]} 12. b4 {[%clk 0:01:22]} 12...
Qh5 {[%clk 0:02:09.5]} 13. Bb2 {[%clk 0:00:30.4]} 13... Ne5 {[%clk 0:02:04.2]}
14. Bd5 {[%clk 0:00:20.1]} 14... Nxd5 {[%clk 0:02:02.2]} 15. Nxd5 {[%clk
0:00:21]} 15... Nxf3+ {[%clk 0:01:30]} 16. gxf3 {[%clk 0:00:20.2]} 16... Bxf3
{[%clk 0:01:30.2]} 17. Nxe7+ {[%clk 0:00:19.9]} 17... Kh8 {[%clk 0:01:29.7]} 18.
Bxg7+ {[%clk 0:00:20.8]} 18... Kxg7 {[%clk 0:01:29.8]} 19. Qb2+ {[%clk
0:00:20.9]} 19... f6 {[%clk 0:01:26.6]} 20. Qd4 {[%clk 0:00:06.6]} 20... Qh3
{[%clk 0:01:20.6]} 21. Nf5+ {[%clk 0:00:04.2]} 21... gxf5 {[%clk 0:01:17.9]} 22.
Qd7+ {[%clk 0:00:04.4]} 22... Rf7 {[%clk 0:01:16.4]} 23. Qxf7+ {[%clk
0:00:04.3]} 23... Kxf7 {[%clk 0:01:16.6]} 0-1

[Event "Late-Titled-Tuesday-Blitz-October-10-2023"]
[Site "Chess.com"]
[Date "2023.10.10"]
[Round "6"]
[White "Andrej2004"]
[Black "IPAchess"]
[Result "0-1"]
[WhiteElo "2563"]
[BlackElo "2387"]
[TimeControl "180+1"]
[EndTime "15:01:03 PDT"]
[Termination "IPAchess won by checkmate"]

1. g3 {[%clk 0:03:00.9]} 1... d5 {[%clk 0:02:59.8]} 2. Bg2 {[%clk 0:03:00.5]}
2... Nf6 {[%clk 0:03:00.5]} 3. b3 {[%clk 0:02:59.6]} 3... e6 {[%clk 0:02:54.5]}
4. Bb2 {[%clk 0:03:00.1]} 4... d4 {[%clk 0:02:54.9]} 5. Nf3 {[%clk 0:02:59.9]}
5... c5 {[%clk 0:02:55.2]} 6. O-O {[%clk 0:03:00]} 6... Nc6 {[%clk 0:02:55.9]}
7. e3 {[%clk 0:02:59.6]} 7... Be7 {[%clk 0:02:55.2]} 8. exd4 {[%clk 0:02:57.8]}
8... cxd4 {[%clk 0:02:56.1]} 9. d3 {[%clk 0:02:56.5]} 9... O-O {[%clk
0:02:56.6]} 10. Nbd2 {[%clk 0:02:56.6]} 10... Re8 {[%clk 0:02:53.8]} 11. Re1
{[%clk 0:02:56.4]} 11... a5 {[%clk 0:02:48.7]} 12. a3 {[%clk 0:02:55.6]} 12...
h6 {[%clk 0:02:41.7]} 13. Nc4 {[%clk 0:02:55.1]} 13... Ra6 {[%clk 0:02:26.2]}
14. Nfe5 {[%clk 0:02:37.4]} 14... Nxe5 {[%clk 0:02:22.5]} 15. Rxe5 {[%clk
0:02:38.3]} 15... Nd7 {[%clk 0:02:16.2]} 16. Rb5 {[%clk 0:02:32]} 16... Bf6
{[%clk 0:01:57.1]} 17. Bxb7 {[%clk 0:02:23.8]} 17... Bxb7 {[%clk 0:01:56.4]} 18.
Rxb7 {[%clk 0:02:24.7]} 18... Nc5 {[%clk 0:01:53.3]} 19. Rb5 {[%clk 0:02:24.4]}
19... Qc7 {[%clk 0:01:48.3]} 20. Qf3 {[%clk 0:02:21.9]} 20... e5 {[%clk
0:01:45.1]} 21. Qd5 {[%clk 0:02:17]} 21... Ne6 {[%clk 0:01:36.9]} 22. Rxa5
{[%clk 0:02:05.6]} 22... Rxa5 {[%clk 0:01:32.9]} 23. Qxa5 {[%clk 0:02:05.7]}
23... Qc6 {[%clk 0:01:31.5]} 24. Qb6 {[%clk 0:01:47.6]} 24... Qa8 {[%clk
0:01:27.2]} 25. Nd6 {[%clk 0:01:42]} 25... Rb8 {[%clk 0:01:12]} 26. Nb7 {[%clk
0:01:07.5]} 26... Rxb7 {[%clk 0:01:06.4]} 27. Qc6 {[%clk 0:01:07.8]} 27... Qb8
{[%clk 0:00:59.7]} 28. a4 {[%clk 0:01:07.1]} 28... Rc7 {[%clk 0:00:59.7]} 29.
Qd6 {[%clk 0:01:02.6]} 29... Qb7 {[%clk 0:00:59.5]} 30. a5 {[%clk 0:01:00.4]}
30... Ng5 {[%clk 0:00:58.3]} 31. a6 {[%clk 0:00:45.5]} 31... Nh3+ {[%clk
0:00:58.4]} 32. Kf1 {[%clk 0:00:44.7]} 32... Qh1+ {[%clk 0:00:58.6]} 33. Ke2
{[%clk 0:00:43.3]} 33... Rxc2# {[%clk 0:00:59.2]} 0-1

[Event "Late-Titled-Tuesday-Blitz-October-10-2023"]
[Site "Chess.com"]
[Date "2023.10.10"]
[Round "6"]
[White "Harald_Schmidt"]
[Black "chessisveryfun1264"]
[Result "0-1"]
[WhiteElo "2360"]
[BlackElo "2591"]
[TimeControl "180+1"]
[EndTime "15:01:05 PDT"]
[Termination "chessisveryfun1264 won by resignation"]

1. e4 {[%clk 0:02:59.9]} 1... e6 {[%clk 0:02:58.8]} 2. d3 {[%clk 0:02:58]} 2...
d5 {[%clk 0:02:58.7]} 3. Nd2 {[%clk 0:02:57.2]} 3... c5 {[%clk 0:02:56.4]} 4. g3
{[%clk 0:02:56.9]} 4... Nc6 {[%clk 0:02:56.2]} 5. Bg2 {[%clk 0:02:56.3]} 5...
Nge7 {[%clk 0:02:56.3]} 6. Ne2 {[%clk 0:02:55.4]} 6... g6 {[%clk 0:02:55.9]} 7.
O-O {[%clk 0:02:54.5]} 7... Bg7 {[%clk 0:02:56.3]} 8. f4 {[%clk 0:02:49.9]} 8...
O-O {[%clk 0:02:55.9]} 9. Nf3 {[%clk 0:02:48.7]} 9... b5 {[%clk 0:02:55]} 10.
Rb1 {[%clk 0:02:43.9]} 10... a5 {[%clk 0:02:54.9]} 11. Be3 {[%clk 0:02:42.8]}
11... d4 {[%clk 0:02:52.5]} 12. Bf2 {[%clk 0:02:40.9]} 12... a4 {[%clk
0:02:50.4]} 13. g4 {[%clk 0:02:35.4]} 13... f5 {[%clk 0:02:48.1]} 14. gxf5
{[%clk 0:02:34.8]} 14... exf5 {[%clk 0:02:47.6]} 15. Ng3 {[%clk 0:02:34.2]}
15... fxe4 {[%clk 0:02:46.1]} 16. Nxe4 {[%clk 0:02:33.5]} 16... Qb6 {[%clk
0:02:45.1]} 17. Bg3 {[%clk 0:02:28.3]} 17... Nf5 {[%clk 0:02:43.8]} 18. Qd2
{[%clk 0:02:19.7]} 18... Bb7 {[%clk 0:02:43.3]} 19. Ne5 {[%clk 0:02:17.2]} 19...
Nxe5 {[%clk 0:02:41.3]} 20. fxe5 {[%clk 0:02:16.6]} 20... Nxg3 {[%clk
0:02:41.9]} 21. hxg3 {[%clk 0:02:10.9]} 21... Bxe5 {[%clk 0:02:41.9]} 22. Qg5
{[%clk 0:02:09.6]} 22... Bg7 {[%clk 0:02:40.5]} 23. Rxf8+ {[%clk 0:01:48.4]}
23... Rxf8 {[%clk 0:02:38.5]} 24. Rf1 {[%clk 0:01:47.5]} 24... Rxf1+ {[%clk
0:02:38.1]} 25. Kxf1 {[%clk 0:01:47.1]} 25... c4 {[%clk 0:02:33.7]} 26. Qe7
{[%clk 0:01:45.7]} 26... Bd5 {[%clk 0:02:18.8]} 27. Qe8+ {[%clk 0:01:35.8]}
27... Bf8 {[%clk 0:02:18.4]} 28. Qd7 {[%clk 0:01:35.3]} 28... Bf7 {[%clk
0:02:10]} 29. Ke2 {[%clk 0:01:27.8]} 29... cxd3+ {[%clk 0:02:10.1]} 30. cxd3
{[%clk 0:01:27.2]} 30... Qe6 {[%clk 0:02:08.2]} 31. Qxe6 {[%clk 0:01:25]} 31...
Bxe6 {[%clk 0:02:09.1]} 32. a3 {[%clk 0:01:24.6]} 32... Kg7 {[%clk 0:02:05.5]}
33. Ng5 {[%clk 0:01:19.2]} 33... Bb3 {[%clk 0:02:04.2]} 34. Bc6 {[%clk
0:01:17.6]} 34... b4 {[%clk 0:02:03.4]} 35. axb4 {[%clk 0:01:17.3]} 35... Bxb4
{[%clk 0:02:04.3]} 36. Kf3 {[%clk 0:01:15.4]} 36... Bc3 {[%clk 0:02:03]} 37.
Bxa4 {[%clk 0:01:07]} 37... Bxa4 {[%clk 0:02:00.2]} 38. bxc3 {[%clk 0:01:06.5]}
38... dxc3 {[%clk 0:02:01.1]} 39. Ke2 {[%clk 0:01:06.3]} 39... Bc6 {[%clk
0:01:52.8]} 40. d4 {[%clk 0:01:00.2]} 40... h6 {[%clk 0:01:52.9]} 41. Ne6+
{[%clk 0:00:59.5]} 41... Kf6 {[%clk 0:01:51.2]} 42. Nc5 {[%clk 0:00:56.8]} 42...
Bb5+ {[%clk 0:01:48.7]} 43. Ke3 {[%clk 0:00:55]} 43... Kf5 {[%clk 0:01:49.2]}
44. d5 {[%clk 0:00:47.5]} 44... Ke5 {[%clk 0:01:48.9]} 45. d6 {[%clk 0:00:46.9]}
45... c2 {[%clk 0:01:42]} 46. Kd2 {[%clk 0:00:45.3]} 46... Kxd6 {[%clk
0:01:40.9]} 47. Ne4+ {[%clk 0:00:40.9]} 47... Ke5 {[%clk 0:01:40.4]} 48. Nc3
{[%clk 0:00:41]} 48... Bd3 {[%clk 0:01:39.7]} 0-1

[Event "Late-Titled-Tuesday-Blitz-October-10-2023"]
[Site "Chess.com"]
[Date "2023.10.10"]
[Round "6"]
[White "OLDTERMINATOR"]
[Black "IngOscarArdila"]
[Result "0-1"]
[WhiteElo "1590"]
[BlackElo "2314"]
[TimeControl "180+1"]
[EndTime "15:01:06 PDT"]
[Termination "IngOscarArdila won by resignation"]

1. e4 {[%clk 0:02:55.3]} 1... e5 {[%clk 0:02:59.6]} 2. Nf3 {[%clk 0:02:54.3]}
2... Nf6 {[%clk 0:03:00]} 3. Nxe5 {[%clk 0:02:52.4]} 3... d6 {[%clk 0:03:00.1]}
4. Nf3 {[%clk 0:02:52.1]} 4... Nxe4 {[%clk 0:03:00.5]} 5. d4 {[%clk 0:02:52.5]}
5... Be7 {[%clk 0:03:00.2]} 6. Bd3 {[%clk 0:02:52.8]} 6... d5 {[%clk 0:03:00.7]}
7. O-O {[%clk 0:02:49.1]} 7... Nc6 {[%clk 0:03:00.7]} 8. c4 {[%clk 0:02:48.7]}
8... Nb4 {[%clk 0:03:00.9]} 9. Nc3 {[%clk 0:02:35.8]} 9... Nxd3 {[%clk
0:02:51.7]} 10. Qxd3 {[%clk 0:02:34.3]} 10... Nxc3 {[%clk 0:02:52.1]} 11. bxc3
{[%clk 0:02:31.7]} 11... dxc4 {[%clk 0:02:52.4]} 12. Qxc4 {[%clk 0:02:30.8]}
12... O-O {[%clk 0:02:52.7]} 13. Rb1 {[%clk 0:02:27.8]} 13... Be6 {[%clk
0:02:50.2]} 14. Qb5 {[%clk 0:02:14.1]} 14... b6 {[%clk 0:02:49.4]} 15. Qh5
{[%clk 0:02:09.3]} 15... Qd5 {[%clk 0:02:45.7]} 16. Qxd5 {[%clk 0:01:59.5]}
16... Bxd5 {[%clk 0:02:45.7]} 17. Rb2 {[%clk 0:01:45.7]} 17... Bf6 {[%clk
0:02:40]} 18. Bf4 {[%clk 0:01:41.9]} 18... c5 {[%clk 0:02:37.6]} 19. a4 {[%clk
0:01:40.4]} 19... Bxf3 {[%clk 0:02:32.7]} 20. gxf3 {[%clk 0:01:39.5]} 20... cxd4
{[%clk 0:02:33.1]} 21. cxd4 {[%clk 0:01:38.5]} 21... Bxd4 {[%clk 0:02:33.3]} 22.
Rc2 {[%clk 0:01:33.5]} 22... Rac8 {[%clk 0:02:31.6]} 23. Rfc1 {[%clk 0:01:32.4]}
23... Rxc2 {[%clk 0:02:31]} 24. Rxc2 {[%clk 0:01:31.9]} 24... Bc5 {[%clk
0:02:26.8]} 25. Rd2 {[%clk 0:01:27]} 25... Re8 {[%clk 0:02:18]} 26. Rd7 {[%clk
0:01:25.8]} 26... a5 {[%clk 0:02:18.2]} 27. Bd6 {[%clk 0:01:14.5]} 27... Bxd6
{[%clk 0:02:13.6]} 28. Rxd6 {[%clk 0:01:13.7]} 28... Rb8 {[%clk 0:02:14.1]} 29.
Kf1 {[%clk 0:01:13.4]} 29... Kf8 {[%clk 0:02:13.5]} 30. Ke2 {[%clk 0:01:13]}
30... Ke7 {[%clk 0:02:12.6]} 31. Rd5 {[%clk 0:01:05.5]} 31... Rc8 {[%clk
0:02:09.5]} 32. Rb5 {[%clk 0:01:04.8]} 32... Rc6 {[%clk 0:02:09.1]} 33. Ke3
{[%clk 0:01:02]} 33... Kd7 {[%clk 0:02:09.2]} 34. Ke4 {[%clk 0:00:59.8]} 34...
Kc7 {[%clk 0:02:09.4]} 35. Ke5 {[%clk 0:00:58.6]} 35... Rc4 {[%clk 0:02:05.6]}
36. Kd5 {[%clk 0:00:49.4]} 36... Rxa4 {[%clk 0:02:04.2]} 37. Rb2 {[%clk
0:00:47.8]} 37... Ra3 {[%clk 0:01:59.1]} 38. Rc2+ {[%clk 0:00:44.9]} 38... Kb7
{[%clk 0:01:59.2]} 39. f4 {[%clk 0:00:41.9]} 39... Rf3 {[%clk 0:01:56.6]} 40.
Re2 {[%clk 0:00:40.5]} 40... Rxf4 {[%clk 0:01:54.6]} 41. Re7+ {[%clk 0:00:39.5]}
41... Ka6 {[%clk 0:01:55]} 42. Ke5 {[%clk 0:00:31.9]} 42... Rf6 {[%clk
0:01:54.7]} 43. Kd5 {[%clk 0:00:30.3]} 43... a4 {[%clk 0:01:53.8]} 44. Kc4
{[%clk 0:00:21.4]} 44... Rf4+ {[%clk 0:01:48.3]} 45. Kd3 {[%clk 0:00:16.5]}
45... a3 {[%clk 0:01:48]} 0-1

[Event "Late-Titled-Tuesday-Blitz-October-10-2023"]
[Site "Chess.com"]
[Date "2023.10.10"]
[Round "6"]
[White "Walter_White_Poland"]
[Black "The_Straightforward_Rook"]
[Result "0-1"]
[WhiteElo "2336"]
[BlackElo "2550"]
[TimeControl "180+1"]
[EndTime "15:01:27 PDT"]
[Termination "The_Straightforward_Rook won by resignation"]

1. d4 {[%clk 0:03:00.9]} 1... Nf6 {[%clk 0:02:59.6]} 2. Bf4 {[%clk 0:03:00.4]}
2... e6 {[%clk 0:02:59.7]} 3. e3 {[%clk 0:03:00.1]} 3... d5 {[%clk 0:03:00.2]}
4. Nd2 {[%clk 0:02:57.6]} 4... Bd6 {[%clk 0:03:00]} 5. Bxd6 {[%clk 0:02:52.7]}
5... cxd6 {[%clk 0:02:56]} 6. Ngf3 {[%clk 0:02:51.6]} 6... Nc6 {[%clk
0:02:54.1]} 7. c4 {[%clk 0:02:49.7]} 7... O-O {[%clk 0:02:46.6]} 8. Be2 {[%clk
0:02:44.6]} 8... dxc4 {[%clk 0:02:40.1]} 9. Nxc4 {[%clk 0:02:44]} 9... b5 {[%clk
0:02:37.6]} 10. Ncd2 {[%clk 0:02:42.5]} 10... Qb6 {[%clk 0:02:35.6]} 11. O-O
{[%clk 0:02:41.1]} 11... Bb7 {[%clk 0:02:35.9]} 12. a4 {[%clk 0:02:39.4]} 12...
a6 {[%clk 0:02:32.8]} 13. axb5 {[%clk 0:02:28.2]} 13... axb5 {[%clk 0:02:33.7]}
14. Qb3 {[%clk 0:02:22.7]} 14... b4 {[%clk 0:02:19.2]} 15. Nc4 {[%clk
0:02:16.1]} 15... Qc7 {[%clk 0:02:13.5]} 16. Rxa8 {[%clk 0:02:13.7]} 16... Rxa8
{[%clk 0:02:12.7]} 17. Rc1 {[%clk 0:02:08.7]} 17... Na5 {[%clk 0:01:27.1]} 18.
Qd1 {[%clk 0:02:06.1]} 18... Rc8 {[%clk 0:01:16.4]} 19. Kf1 {[%clk 0:00:49.8]}
19... Bxf3 {[%clk 0:01:01.5]} 20. gxf3 {[%clk 0:00:47.4]} 20... d5 {[%clk
0:00:59]} 21. Nxa5 {[%clk 0:00:34.7]} 21... Qxc1 {[%clk 0:00:58.6]} 22. Nb7
{[%clk 0:00:30.3]} 22... Qxb2 {[%clk 0:00:52.4]} 23. Nc5 {[%clk 0:00:29.3]}
23... Ra8 {[%clk 0:00:52]} 24. Kg2 {[%clk 0:00:24.5]} 24... Ra2 {[%clk
0:00:50.2]} 0-1

[Event "Late-Titled-Tuesday-Blitz-October-10-2023"]
[Site "Chess.com"]
[Date "2023.10.10"]
[Round "6"]
[White "Cheer_Down"]
[Black "pinguino120"]
[Result "1-0"]
[WhiteElo "2461"]
[BlackElo "2232"]
[TimeControl "180+1"]
[EndTime "15:01:31 PDT"]
[Termination "Cheer_Down won by resignation"]

1. e4 {[%clk 0:03:00.9]} 1... c5 {[%clk 0:02:59.5]} 2. Nf3 {[%clk 0:03:00.4]}
2... d6 {[%clk 0:02:58.8]} 3. d4 {[%clk 0:03:00.1]} 3... cxd4 {[%clk 0:02:59.4]}
4. Nxd4 {[%clk 0:03:01]} 4... Nf6 {[%clk 0:02:59.9]} 5. Nc3 {[%clk 0:03:00.7]}
5... a6 {[%clk 0:03:00.1]} 6. Bg5 {[%clk 0:02:59.9]} 6... h6 {[%clk 0:02:57.4]}
7. Bxf6 {[%clk 0:02:56.6]} 7... gxf6 {[%clk 0:02:56.1]} 8. Qh5 {[%clk
0:02:41.5]} 8... Nc6 {[%clk 0:02:45.9]} 9. Nf5 {[%clk 0:02:11.7]} 9... e6 {[%clk
0:02:42.6]} 10. Ne3 {[%clk 0:02:10.1]} 10... Qa5 {[%clk 0:02:35.5]} 11. Qxa5
{[%clk 0:02:04.7]} 11... Nxa5 {[%clk 0:02:35.4]} 12. O-O-O {[%clk 0:02:05.3]}
12... Bd7 {[%clk 0:02:34.2]} 13. Kb1 {[%clk 0:01:57.8]} 13... Be7 {[%clk
0:02:33.6]} 14. f4 {[%clk 0:01:54.6]} 14... b5 {[%clk 0:02:33.1]} 15. a3 {[%clk
0:01:52.4]} 15... O-O-O {[%clk 0:02:17.2]} 16. f5 {[%clk 0:01:46.4]} 16... Nc6
{[%clk 0:02:10.5]} 17. a4 {[%clk 0:01:43.3]} 17... Na7 {[%clk 0:01:53.4]} 18.
axb5 {[%clk 0:01:36.5]} 18... axb5 {[%clk 0:01:52.5]} 19. b4 {[%clk 0:01:32.1]}
19... Kb7 {[%clk 0:01:51.3]} 20. Kb2 {[%clk 0:01:30.1]} 20... Kb6 {[%clk
0:01:49.7]} 21. Kb3 {[%clk 0:01:30]} 21... Rhe8 {[%clk 0:01:44.6]} 22. Be2
{[%clk 0:01:29.7]} 22... Rc8 {[%clk 0:01:42.3]} 23. Ra1 {[%clk 0:01:25.8]} 23...
Nc6 {[%clk 0:00:57.3]} 24. Nxb5 {[%clk 0:01:12.6]} 24... Ne5 {[%clk 0:00:54.3]}
25. Nd4 {[%clk 0:01:03.2]} 25... Ra8 {[%clk 0:00:49.1]} 26. Nc4+ {[%clk
0:00:54.4]} 26... Nxc4 {[%clk 0:00:45.4]} 27. Bxc4 {[%clk 0:00:55.3]} 27... Bf8
{[%clk 0:00:35.6]} 28. fxe6 {[%clk 0:00:51.8]} 28... fxe6 {[%clk 0:00:35.7]} 29.
Rxa8 {[%clk 0:00:51.4]} 29... Rxa8 {[%clk 0:00:34.9]} 30. Bxe6 {[%clk
0:00:48.3]} 30... Ba4+ {[%clk 0:00:30.9]} 31. Kb2 {[%clk 0:00:47.1]} 31... d5
{[%clk 0:00:24.6]} 32. Bxd5 {[%clk 0:00:45.5]} 32... Bxb4 {[%clk 0:00:24.1]} 33.
Bxa8 {[%clk 0:00:44.8]} 1-0

[Event "Late-Titled-Tuesday-Blitz-October-10-2023"]
[Site "Chess.com"]
[Date "2023.10.10"]
[Round "6"]
[White "YouShallNotPass001"]
[Black "Arteler"]
[Result "1-0"]
[WhiteElo "2428"]
[BlackElo "2590"]
[TimeControl "180+1"]
[EndTime "15:01:34 PDT"]
[Termination "YouShallNotPass001 won by resignation"]

1. Nf3 {[%clk 0:03:00.9]} 1... d5 {[%clk 0:02:58.5]} 2. e3 {[%clk 0:03:01.8]}
2... Nf6 {[%clk 0:02:57.8]} 3. Be2 {[%clk 0:03:02.7]} 3... c5 {[%clk 0:02:58.3]}
4. O-O {[%clk 0:03:03.6]} 4... Nc6 {[%clk 0:02:59]} 5. d4 {[%clk 0:03:04]} 5...
cxd4 {[%clk 0:02:58.4]} 6. exd4 {[%clk 0:03:04.9]} 6... Bf5 {[%clk 0:02:58]} 7.
c3 {[%clk 0:03:05.8]} 7... e6 {[%clk 0:02:58.5]} 8. a4 {[%clk 0:03:05.5]} 8...
h6 {[%clk 0:02:58.9]} 9. Bf4 {[%clk 0:03:05]} 9... Be7 {[%clk 0:02:59.2]} 10.
Re1 {[%clk 0:03:05.2]} 10... O-O {[%clk 0:02:59.8]} 11. Nbd2 {[%clk 0:03:05]}
11... Rc8 {[%clk 0:02:57.6]} 12. b4 {[%clk 0:03:04]} 12... Nh5 {[%clk 0:02:43]}
13. Bg3 {[%clk 0:03:02.7]} 13... Nxg3 {[%clk 0:02:43]} 14. hxg3 {[%clk
0:03:02.4]} 14... a5 {[%clk 0:02:34.9]} 15. b5 {[%clk 0:03:01.7]} 15... Nb8
{[%clk 0:02:35.2]} 16. c4 {[%clk 0:03:00]} 16... Bb4 {[%clk 0:02:31.9]} 17. c5
{[%clk 0:02:59]} 17... Nd7 {[%clk 0:02:22.4]} 18. Bf1 {[%clk 0:02:52.9]} 18...
Re8 {[%clk 0:02:12.4]} 19. Re3 {[%clk 0:02:48.1]} 19... e5 {[%clk 0:02:08.5]}
20. c6 {[%clk 0:02:45.2]} 20... bxc6 {[%clk 0:02:06]} 21. bxc6 {[%clk
0:02:46.1]} 21... Rxc6 {[%clk 0:01:59.5]} 22. Bb5 {[%clk 0:02:45.1]} 22... Rc2
{[%clk 0:01:46.8]} 23. dxe5 {[%clk 0:02:30.8]} 23... d4 {[%clk 0:01:46.1]} 24.
Rb3 {[%clk 0:02:23.1]} 24... Nc5 {[%clk 0:01:31.1]} 25. Rxb4 {[%clk 0:02:07.1]}
25... axb4 {[%clk 0:01:27.1]} 26. Bxe8 {[%clk 0:02:07.4]} 26... Qxe8 {[%clk
0:01:27.5]} 27. Nxd4 {[%clk 0:02:03.4]} 27... Rxd2 {[%clk 0:01:17.1]} 28. Qxd2
{[%clk 0:02:02.2]} 28... Qxe5 {[%clk 0:01:18]} 29. Re1 {[%clk 0:01:59.8]} 29...
Qd5 {[%clk 0:01:18]} 30. Qxb4 {[%clk 0:01:54.9]} 30... Nd3 {[%clk 0:01:17.9]}
31. Re8+ {[%clk 0:01:48.3]} 31... Kh7 {[%clk 0:01:18]} 32. Qb5 {[%clk
0:01:40.2]} 32... Nc5 {[%clk 0:01:01.1]} 33. Nxf5 {[%clk 0:01:36.6]} 33... Qxf5
{[%clk 0:01:00.8]} 34. Re1 {[%clk 0:01:32.3]} 34... Qc2 {[%clk 0:00:55.5]} 35.
a5 {[%clk 0:01:21.9]} 35... Nd3 {[%clk 0:00:55.2]} 36. Rf1 {[%clk 0:01:20.3]}
36... Nc1 {[%clk 0:00:20]} 37. a6 {[%clk 0:01:06.2]} 37... Ne2+ {[%clk
0:00:20.3]} 38. Kh2 {[%clk 0:01:05.3]} 38... Nd4 {[%clk 0:00:21.2]} 39. Qb1
{[%clk 0:01:03.5]} 1-0